[Event "European Online Club-ch-H 2021"]
[Site "Online"]
[Date "2021.03.27"]
[Round "5.3"]
[White "Sadikhov, Ulvi"]
[Black "Sertbay, Huseyin"]
[Result "1-0"]
[ECO "A36"]
[WhiteElo "2490"]
[BlackElo "2101"]
[Annotator "ChessBase"]
[PlyCount "77"]
[EventDate "2021.03.27"]
[EventType "team-tourn"]
[EventCountry "NET"]
[SourceTitle "playchess.com"]
[Source "ChessBase"]
[SourceQuality "1"]
[TimeControl "900+5"]

1. b3 {[%emt 0:00:00]} c5 {[%emt 0:00:22]} 2. Bb2 {[%emt 0:00:03]} Nc6 {[%emt 0:00:01]} 3. g3 {[%emt 0:00:02]} e5 {[%emt 0:00:02]} 4. Bg2 {[%emt 0:00:02]} d6 {[%emt 0:00:01]} 5. e3 {[%emt 0:01:02]} g6 {[%emt 0:00:04]} 6. Ne2 {[%emt 0:00:02]} Bg7 {[%emt 0:00:01]} 7. c4 {[%emt 0:00:28]} Nge7 {[%emt 0:00:04]} 8. O-O {[%emt 0:00:02]} O-O {[%emt 0:00:01]} 9. Nbc3 {[%emt 0:00:08]} Be6 {[%emt 0:01:15]} 10. Nd5 {[%emt 0:00:32]} Rb8 {[%emt 0:00:03]} 11. d3 {[%emt 0:00:19]} b5 {[%emt 0:00:08]} 12. Qd2 {[%emt 0:01:01]} Qd7 {[%emt 0:01:42]} 13. f4 {[%emt 0:00:10]} f5 {[%emt 0:05:21]} 14. Rac1 {[%emt 0:01:00]} b4 {[%emt 0:00:06]} 15. Rcd1 {[%emt 0:01:00]} Bf7 {[%emt 0:00:08]} 16. d4 {[%emt 0:00:29]} cxd4 {[%emt 0:00:26]} 17. exd4 {[%emt 0:01:10]} e4 {[%emt 0:00:02]} 18. Nxe7+ {[%emt 0:00:18]} Qxe7 {[%emt 0:00:32]} 19. d5 {[%emt 0:00:07]} Nd8 {[%emt 0:00:02]} 20. Bxg7 {[%emt 0:00:47]} Kxg7 {[%emt 0:00:01]} 21. Nd4 {[%emt 0:00:03]} Re8 {[%emt 0:00:26]} 22. Rfe1 {[%emt 0:00:03]} Qf6 {[%emt 0:00:08]} 23. Re3 {[%emt 0:00:13]} Nb7 {[%emt 0:00:03]} 24. Nc6 {[%emt 0:00:17]} Nc5 {[%emt 0:00:01]} 25. Nxb4 {[%emt 0:00:25]} Rb6 {[%emt 0:00:55]} 26. Nc6 {[%emt 0:00:10]} a6 {[%emt 0:00:43]} 27. Bf1 {[%emt 0:00:04]} g5 {[%emt 0:00:31]} 28. fxg5 {[%emt 0:00:39]} Qxg5 {[%emt 0:00:02]} 29. Qf2 {[%emt 0:00:02]} Bh5 {[%emt 0:00:10]} 30. Rde1 {[%emt 0:00:52]} Nd7 {[%emt 0:00:35]} 31. Nd4 {[%emt 0:00:14]} Ne5 {[%emt 0:00:04]} 32. Nxf5+ {[%emt 0:01:18]} Kh8 {[%emt 0:00:20]} 33. Rxe4 {[%emt 0:00:27]} Rf8 {[%emt 0:00:05]} 34. Rxe5 {[%emt 0:00:29]} dxe5 {[%emt 0:00:02]} 35. Qxb6 {[%emt 0:00:02]} Qxf5 {[%emt 0:00:10]} 36. Qe3 {[%emt 0:00:08]} Kg8 {[%emt 0:00:44]} 37. Bg2 {[%emt 0:00:18]} Bg6 {[%emt 0:00:40]} 38. d6 {[%emt 0:00:22]} Rd8 {[%emt 0:00:29]} 39. c5 {[%emt 0:00:07]} 1-0

[Event "European Online Club-ch-H 2021"]
[Site "Online"]
[Date "2021.03.27"]
[Round "5.4"]
[White "Atasoy, Ata"]
[Black "Ahmadzada, Ahmad"]
[Result "0-1"]
[ECO "B95"]
[WhiteElo "1636"]
[BlackElo "2431"]
[Annotator "NA"]
[PlyCount "102"]
[EventDate "2021.03.27"]
[EventType "team-tourn"]
[EventCountry "NET"]
[SourceTitle "playchess.com"]
[Source "ChessBase"]
[SourceQuality "1"]
[TimeControl "900+5"]

1. e4 {[%emt 0:00:00]} c5 {[%emt 0:00:04]} 2. Nf3 {[%emt 0:00:04]} e6 {[%emt 0:00:02]} 3. d4 {[%emt 0:00:04]} cxd4 {[%emt 0:00:01]} 4. Nxd4 {[%emt 0:00:00]} Nf6 {[%emt 0:00:02]} 5. Nc3 {[%emt 0:00:07]} d6 {[%emt 0:00:02]} 6. Bg5 {[%emt 0:00:09]} Be7 {[%emt 0:00:05]} 7. Qd2 {[%emt 0:00:46]} O-O {[%emt 0:00:29]} 8. O-O-O {[%emt 0:00:16]} a6 {[%emt 0:00:13]} 9. f4 {[%emt 0:01:28]} b5 {[%emt 0:00:47]} 10. Bd3 {[%emt 0:01:16]} Bb7 {[%emt 0:00:21]} 11. e5 {[%emt 0:01:02]} dxe5 {[%emt 0:00:24]} 12. fxe5 {[%emt 0:00:02]} Nfd7 {[%emt 0:00:24]} 13. Bxe7 {[%emt 0:00:54]} Qxe7 {[%emt 0:00:03]} 14. Qf4 {[%emt 0:00:38]} Nc5 {[%emt 0:00:42]} 15. Ne4 {[%emt 0:02:24]} Bxe4 {[%emt 0:02:20]} 16. Bxe4 {[%emt 0:00:04]} Ra7 {[%emt 0:00:03]} 17. Nf3 {[%emt 0:01:49]} Nxe4 {[%emt 0:01:55]} 18. Qxe4 {[%emt 0:00:00]} Rc8 {[%emt 0:00:04]} 19. Rd6 {[%emt 0:01:05]} Rac7 {[%emt 0:00:09]} 20. Rhd1 {[%emt 0:00:34]} h6 {[%emt 0:00:14]} 21. R1d2 {[%emt 0:00:26]} Nc6 {[%emt 0:00:16]} 22. g4 {[%emt 0:00:33]} a5 {[%emt 0:00:33]} 23. h4 {[%emt 0:00:34]} Nb4 {[%emt 0:00:20]} 24. c3 {[%emt 0:00:46]} Nd5 {[%emt 0:00:15]} 25. R2xd5 {[%emt 0:01:46]} exd5 {[%emt 0:00:05]} 26. Qxd5 {[%emt 0:00:00]} b4 {[%emt 0:00:05]} 27. Kd2 {[%emt 0:00:17]} bxc3+ {[%emt 0:00:06]} 28. bxc3 {[%emt 0:00:00]} Rxc3 {[%emt 0:00:15]} 29. Rd7 {[%emt 0:00:01]} R3c5 {[%emt 0:00:30]} 30. Rxe7 {[%emt 0:00:14]} Rxd5+ {[%emt 0:00:03]} 31. Ke3 {[%emt 0:00:02]} Rc3+ {[%emt 0:00:36]} 32. Ke2 {[%emt 0:00:08]} Rb5 {[%emt 0:00:07]} 33. Rd7 {[%emt 0:00:09]} Rb2+ {[%emt 0:00:03]} 34. Nd2 {[%emt 0:00:01]} Rg3 {[%emt 0:00:06]} 35. g5 {[%emt 0:00:06]} hxg5 {[%emt 0:00:04]} 36. hxg5 {[%emt 0:00:00]} Rxg5 {[%emt 0:00:01]} 37. Rd5 {[%emt 0:00:08]} Kh7 {[%emt 0:00:06]} 38. Kf3 {[%emt 0:00:02]} Rxa2 {[%emt 0:00:11]} 39. Ne4 {[%emt 0:00:09]} Rf5+ {[%emt 0:00:08]} 40. Kg4 {[%emt 0:00:02]} g6 {[%emt 0:00:14]} 41. Nf6+ {[%emt 0:00:09]} Kg7 {[%emt 0:00:03]} 42. Ne8+ {[%emt 0:00:07]} Kh6 {[%emt 0:00:05]} 43. Nf6 {[%emt 0:00:05]} Rg2+ {[%emt 0:00:15]} 44. Kh3 {[%emt 0:00:03]} Rg1 {[%emt 0:00:07]} 45. Rd8 {[%emt 0:00:04]} Rxe5 {[%emt 0:00:07]} 46. Rh8+ {[%emt 0:00:07]} Kg7 {[%emt 0:00:04]} 47. Ra8 {[%emt 0:00:08]} Kxf6 {[%emt 0:00:02]} 48. Ra6+ {[%emt 0:00:01]} Kg7 {[%emt 0:00:02]} 49. Kh2 {[%emt 0:00:06]} Rgg5 {[%emt 0:00:03]} 50. Kh3 {[%emt 0:00:02]} Re8 {[%emt 0:00:02]} 51. Kh4 {[%emt 0:00:02]} Rg1 {[%emt 0:00:02]} 0-1

[Event "European Online Club-ch-H 2021"]
[Site "Online"]
[Date "2021.03.27"]
[Round "5.5"]
[White "Nagy, Gabor"]
[Black "Banusz, Tamas"]
[Result "0-1"]
[ECO "D27"]
[WhiteElo "2509"]
[BlackElo "2631"]
[Annotator "ChessBase"]
[PlyCount "60"]
[EventDate "2021.03.27"]
[EventType "team-tourn"]
[EventCountry "NET"]
[SourceTitle "playchess.com"]
[Source "ChessBase"]
[SourceQuality "1"]
[TimeControl "900+5"]

1. d4 {[%emt 0:00:00]} d5 {[%emt 0:00:03]} 2. c4 {[%emt 0:00:03]} e6 {[%emt 0:00:02]} 3. Nf3 {[%emt 0:00:02]} Nf6 {[%emt 0:00:02]} 4. Nc3 {[%emt 0:00:02]} dxc4 {[%emt 0:00:02]} 5. e3 {[%emt 0:00:21]} a6 {[%emt 0:00:02]} 6. Bxc4 {[%emt 0:00:05]} b5 {[%emt 0:00:02]} 7. Bb3 {[%emt 0:00:02]} Bb7 {[%emt 0:00:07]} 8. O-O {[%emt 0:00:03]} c5 {[%emt 0:00:05]} 9. e4 {[%emt 0:00:16]} cxd4 {[%emt 0:00:03]} 10. Nxd4 {[%emt 0:00:05]} Nbd7 {[%emt 0:00:04]} 11. Bxe6 {[%emt 0:00:54]} fxe6 {[%emt 0:00:17]} 12. Nxe6 {[%emt 0:00:02]} Qb6 {[%emt 0:00:56]} 13. Nd5 {[%emt 0:00:16]} Bxd5 {[%emt 0:01:03]} 14. exd5 {[%emt 0:00:04]} Kf7 {[%emt 0:00:17]} 15. Re1 {[%emt 0:02:51]} Bd6 {[%emt 0:01:16]} 16. Ng5+ {[%emt 0:00:33]} Kg8 {[%emt 0:00:15]} 17. Re6 {[%emt 0:00:26]} h6 {[%emt 0:03:28]} 18. Nf3 {[%emt 0:02:12]} Nf8 {[%emt 0:00:56]} 19. Re2 {[%emt 0:00:52]} Rd8 {[%emt 0:00:24]} 20. Nd4 {[%emt 0:00:36]} Bc5 {[%emt 0:00:30]} 21. Be3 {[%emt 0:00:55]} Rxd5 {[%emt 0:00:17]} 22. Rd2 {[%emt 0:00:02]} Ng6 {[%emt 0:01:29]} 23. Qc2 {[%emt 0:01:27]} Kh7 {[%emt 0:00:57]} 24. Nf5 {[%emt 0:00:22]} Rxd2 {[%emt 0:01:15]} 25. Bxd2 {[%emt 0:00:04]} Bxf2+ {[%emt 0:00:06]} 26. Kh1 {[%emt 0:00:02]} Re8 {[%emt 0:00:05]} 27. Rf1 {[%emt 0:00:04]} Qc5 {[%emt 0:00:29]} 28. Bc3 {[%emt 0:00:06]} Re1 {[%emt 0:00:37]} 29. Rxe1 {[%emt 0:00:13]} Bxe1 {[%emt 0:00:02]} 30. Nh4 {[%emt 0:00:10]} Bxh4 {[%emt 0:00:03]} 0-1

[Event "European Online Club-ch-H 2021"]
[Site "Online"]
[Date "2021.03.27"]
[Round "5.6"]
[White "Braun, Arik"]
[Black "Mihok, Oliver"]
[Result "1-0"]
[ECO "E61"]
[WhiteElo "2609"]
[BlackElo "2540"]
[Annotator "ChessBase"]
[PlyCount "69"]
[EventDate "2021.03.27"]
[EventType "team-tourn"]
[EventCountry "NET"]
[SourceTitle "playchess.com"]
[Source "ChessBase"]
[SourceQuality "1"]
[TimeControl "900+5"]

1. d4 {[%emt 0:00:00]} Nf6 {[%emt 0:00:11]} 2. c4 {[%emt 0:00:02]} g6 {[%emt 0:00:13]} 3. Nf3 {[%emt 0:00:03]} Bg7 {[%emt 0:00:02]} 4. e3 {[%emt 0:00:01]} O-O {[%emt 0:00:06]} 5. Be2 {[%emt 0:00:01]} d6 {[%emt 0:00:01]} 6. Nc3 {[%emt 0:00:02]} Nbd7 {[%emt 0:00:39]} 7. O-O {[%emt 0:00:08]} e5 {[%emt 0:00:06]} 8. Qc2 {[%emt 0:00:02]} Re8 {[%emt 0:00:07]} 9. Rd1 {[%emt 0:00:03]} e4 {[%emt 0:00:18]} 10. Nd2 {[%emt 0:00:02]} Qe7 {[%emt 0:00:01]} 11. b4 {[%emt 0:00:03]} Nf8 {[%emt 0:00:08]} 12. a4 {[%emt 0:00:09]} h5 {[%emt 0:00:03]} 13. b5 {[%emt 0:00:04]} Bf5 {[%emt 0:00:08]} 14. Ba3 {[%emt 0:00:26]} c5 {[%emt 0:01:33]} 15. bxc6 {[%emt 0:00:13]} bxc6 {[%emt 0:00:03]} 16. Rab1 {[%emt 0:00:09]} N8h7 {[%emt 0:01:09]} 17. Qb3 {[%emt 0:00:30]} Rac8 {[%emt 0:01:21]} 18. Qb4 {[%emt 0:01:04]} Bf8 {[%emt 0:00:39]} 19. Qa5 {[%emt 0:02:39]} Ng4 {[%emt 0:00:34]} 20. h3 {[%emt 0:01:02]} Nh6 {[%emt 0:01:38]} 21. Nf1 {[%emt 0:00:33]} Qh4 {[%emt 0:00:57]} 22. Ng3 {[%emt 0:00:56]} Ng5 {[%emt 0:00:31]} 23. Nxf5 {[%emt 0:02:12]} Nxf5 {[%emt 0:00:04]} 24. Bf1 {[%emt 0:00:01]} Bh6 {[%emt 0:02:18]} 25. Rb2 {[%emt 0:02:04]} Rb8 {[%emt 0:00:39]} 26. Rdb1 {[%emt 0:00:33]} Rxb2 {[%emt 0:00:03]} 27. Rxb2 {[%emt 0:00:01]} Nf3+ {[%emt 0:02:26]} 28. gxf3 {[%emt 0:00:29]} exf3 {[%emt 0:00:04]} 29. Nd1 {[%emt 0:00:47]} Re4 {[%emt 0:00:13]} 30. Rb8+ {[%emt 0:00:22]} Kg7 {[%emt 0:00:18]} 31. Qd8 {[%emt 0:00:15]} Rg4+ {[%emt 0:00:24]} 32. Kh1 {[%emt 0:00:42]} Qxd8 {[%emt 0:00:26]} 33. Rxd8 {[%emt 0:00:03]} Rh4 {[%emt 0:00:05]} 34. Bxd6 {[%emt 0:00:11]} Bg5 {[%emt 0:00:09]} 35. Be5+ {[%emt 0:00:10]} 1-0

[Event "European Online Club-ch-H 2021"]
[Site "Online"]
[Date "2021.03.27"]
[Round "5.7"]
[White "Glek, Igor"]
[Black "Wagner, Dennis"]
[Result "0-1"]
[ECO "C26"]
[WhiteElo "2475"]
[BlackElo "2581"]
[Annotator "ChessBase"]
[PlyCount "94"]
[EventDate "2021.03.27"]
[EventType "team-tourn"]
[EventCountry "NET"]
[SourceTitle "playchess.com"]
[Source "ChessBase"]
[SourceQuality "1"]
[TimeControl "900+5"]

1. e4 {[%emt 0:00:00]} e5 {[%emt 0:00:03]} 2. Nf3 {[%emt 0:00:12]} Nc6 {[%emt 0:00:01]} 3. Nc3 {[%emt 0:00:54]} Nf6 {[%emt 0:00:03]} 4. g3 {[%emt 0:00:02]} Bc5 {[%emt 0:00:14]} 5. Bg2 {[%emt 0:00:02]} d6 {[%emt 0:00:01]} 6. d3 {[%emt 0:00:01]} a5 {[%emt 0:00:02]} 7. O-O {[%emt 0:00:04]} O-O {[%emt 0:00:01]} 8. Ne2 {[%emt 0:00:14]} h6 {[%emt 0:00:25]} 9. c4 {[%emt 0:00:25]} Bg4 {[%emt 0:00:20]} 10. h3 {[%emt 0:00:03]} Bxf3 {[%emt 0:00:09]} 11. Bxf3 {[%emt 0:00:02]} Nd4 {[%emt 0:00:26]} 12. Bg2 {[%emt 0:00:02]} c6 {[%emt 0:02:29]} 13. Kh2 {[%emt 0:00:40]} Nxe2 {[%emt 0:02:42]} 14. Qxe2 {[%emt 0:00:05]} a4 {[%emt 0:00:03]} 15. Rb1 {[%emt 0:00:26]} b5 {[%emt 0:01:06]} 16. cxb5 {[%emt 0:00:16]} cxb5 {[%emt 0:00:02]} 17. f4 {[%emt 0:00:01]} Bd4 {[%emt 0:00:18]} 18. Bd2 {[%emt 0:01:04]} Rc8 {[%emt 0:00:28]} 19. Bb4 {[%emt 0:00:04]} Bc5 {[%emt 0:00:07]} 20. Bc3 {[%emt 0:01:40]} Nd7 {[%emt 0:01:52]} 21. Rbc1 {[%emt 0:00:09]} b4 {[%emt 0:00:14]} 22. Bd2 {[%emt 0:00:04]} Qb6 {[%emt 0:00:30]} 23. h4 {[%emt 0:00:54]} Bd4 {[%emt 0:00:41]} 24. Rxc8 {[%emt 0:00:14]} Rxc8 {[%emt 0:00:00]} 25. Bh3 {[%emt 0:00:04]} Rc7 {[%emt 0:00:56]} 26. Bxd7 {[%emt 0:01:29]} Rxd7 {[%emt 0:00:03]} 27. f5 {[%emt 0:02:31]} f6 {[%emt 0:00:01]} 28. Qh5 {[%emt 0:01:03]} Rf7 {[%emt 0:00:14]} 29. Rc1 {[%emt 0:00:04]} Bxb2 {[%emt 0:00:16]} 30. Rf1 {[%emt 0:01:29]} Bc3 {[%emt 0:00:16]} 31. Qd1 {[%emt 0:01:30]} Bxd2 {[%emt 0:01:45]} 32. Qxd2 {[%emt 0:00:02]} Rc7 {[%emt 0:00:04]} 33. Rc1 {[%emt 0:00:25]} Rxc1 {[%emt 0:01:11]} 34. Qxc1 {[%emt 0:00:02]} Qf2+ {[%emt 0:00:01]} 35. Kh3 {[%emt 0:00:02]} Qxa2 {[%emt 0:00:01]} 36. Qc8+ {[%emt 0:00:05]} Kh7 {[%emt 0:00:02]} 37. Qe8 {[%emt 0:00:02]} a3 {[%emt 0:00:15]} 38. g4 {[%emt 0:00:27]} Qg8 {[%emt 0:00:26]} 39. Qg6+ {[%emt 0:00:26]} Kh8 {[%emt 0:00:01]} 40. g5 {[%emt 0:00:02]} a2 {[%emt 0:00:22]} 41. gxh6 {[%emt 0:00:07]} a1=Q {[%emt 0:00:04]} 42. hxg7+ {[%emt 0:00:03]} Qxg7 {[%emt 0:00:01]} 43. Qh5+ {[%emt 0:00:03]} Qh7 {[%emt 0:00:10]} 44. Qe8+ {[%emt 0:00:02]} Qg8 {[%emt 0:00:02]} 45. Qh5+ {[%emt 0:00:04]} Kg7 {[%emt 0:00:02]} 46. Qg6+ {[%emt 0:00:02]} Kf8 {[%emt 0:00:01]} 47. Qxf6+ {[%emt 0:00:02]} Ke8 {[%emt 0:00:01]} 0-1

[Event "European Online Club-ch-H 2021"]
[Site "Online"]
[Date "2021.03.27"]
[Round "5.8"]
[White "Buhmann, Rainer"]
[Black "Harff, Marcel"]
[Result "0-1"]
[ECO "E14"]
[WhiteElo "2580"]
[BlackElo "2360"]
[Annotator "ChessBase"]
[PlyCount "74"]
[EventDate "2021.03.27"]
[EventType "team-tourn"]
[EventCountry "NET"]
[SourceTitle "playchess.com"]
[Source "ChessBase"]
[SourceQuality "1"]
[TimeControl "900+5"]

1. d4 {[%emt 0:00:07]} Nf6 {[%emt 0:04:27]} 2. Nf3 {[%emt 0:00:03]} e6 {[%emt 0:00:04]} 3. c4 {[%emt 0:00:03]} d5 {[%emt 0:00:02]} 4. e3 {[%emt 0:00:01]} Be7 {[%emt 0:00:02]} 5. b3 {[%emt 0:00:03]} O-O {[%emt 0:00:02]} 6. Bd3 {[%emt 0:00:02]} c5 {[%emt 0:00:06]} 7. O-O {[%emt 0:00:03]} Nc6 {[%emt 0:00:08]} 8. Bb2 {[%emt 0:00:04]} b6 {[%emt 0:00:18]} 9. Nbd2 {[%emt 0:00:08]} Bb7 {[%emt 0:00:06]} 10. Rc1 {[%emt 0:00:21]} Rc8 {[%emt 0:00:08]} 11. Re1 {[%emt 0:00:47]} Re8 {[%emt 0:00:10]} 12. dxc5 {[%emt 0:00:36]} bxc5 {[%emt 0:00:45]} 13. cxd5 {[%emt 0:00:25]} Nxd5 {[%emt 0:00:17]} 14. Bb1 {[%emt 0:01:04]} Ndb4 {[%emt 0:00:42]} 15. Ne4 {[%emt 0:00:25]} Qb6 {[%emt 0:00:12]} 16. Nfg5 {[%emt 0:00:59]} h6 {[%emt 0:00:41]} 17. Nxf7 {[%emt 0:06:07]} Kxf7 {[%emt 0:01:03]} 18. Qh5+ {[%emt 0:00:04]} Kg8 {[%emt 0:01:12]} 19. Bxg7 {[%emt 0:02:35]} Kxg7 {[%emt 0:00:56]} 20. Nf6 {[%emt 0:00:44]} Bxf6 {[%emt 0:01:16]} 21. Qg6+ {[%emt 0:00:03]} Kf8 {[%emt 0:00:08]} 22. Qxf6+ {[%emt 0:00:02]} Kg8 {[%emt 0:00:02]} 23. Rc4 {[%emt 0:00:45]} Nd4 {[%emt 0:01:02]} 24. exd4 {[%emt 0:00:15]} e5 {[%emt 0:00:09]} 25. Qxb6 {[%emt 0:00:17]} axb6 {[%emt 0:00:04]} 26. dxe5 {[%emt 0:00:07]} Rc7 {[%emt 0:00:17]} 27. Rh4 {[%emt 0:00:14]} Rg7 {[%emt 0:00:11]} 28. g3 {[%emt 0:00:05]} Nc6 {[%emt 0:00:08]} 29. Rxh6 {[%emt 0:00:34]} Nxe5 {[%emt 0:00:04]} 30. Re3 {[%emt 0:00:10]} Nf3+ {[%emt 0:00:08]} 31. Kf1 {[%emt 0:00:01]} Rxe3 {[%emt 0:00:03]} 32. fxe3 {[%emt 0:00:02]} Nd2+ {[%emt 0:00:01]} 33. Ke2 {[%emt 0:00:01]} Nxb1 {[%emt 0:00:02]} 34. Kd3 {[%emt 0:00:10]} b5 {[%emt 0:00:21]} 35. Rh5 {[%emt 0:00:05]} Rd7+ {[%emt 0:00:11]} 36. Kc2 {[%emt 0:00:02]} Be4+ {[%emt 0:00:04]} 37. Kc1 {[%emt 0:00:01]} c4 {[%emt 0:00:09]} 0-1

[Event "European Online Club-ch-H 2021"]
[Site "Online"]
[Date "2021.03.27"]
[Round "5.10"]
[White "Eljanov, Pavel"]
[Black "Olsen, Filip Boe"]
[Result "1-0"]
[ECO "B91"]
[WhiteElo "2672"]
[BlackElo "2379"]
[Annotator "ChessBase"]
[PlyCount "51"]
[EventDate "2021.03.27"]
[EventType "team-tourn"]
[EventCountry "NET"]
[SourceTitle "playchess.com"]
[Source "ChessBase"]
[SourceQuality "1"]
[TimeControl "900+5"]

1. e4 {[%emt 0:00:00]} c5 {[%emt 0:00:06]} 2. Nc3 {[%emt 0:00:12]} d6 {[%emt 0:00:07]} 3. Nge2 {[%emt 0:01:05]} Nf6 {[%emt 0:00:06]} 4. g3 {[%emt 0:00:16]} g6 {[%emt 0:00:10]} 5. Bg2 {[%emt 0:00:02]} Bg7 {[%emt 0:00:02]} 6. O-O {[%emt 0:00:04]} O-O {[%emt 0:00:02]} 7. d4 {[%emt 0:00:53]} cxd4 {[%emt 0:00:16]} 8. Nxd4 {[%emt 0:00:01]} a6 {[%emt 0:00:34]} 9. h3 {[%emt 0:02:15]} Bd7 {[%emt 0:01:12]} 10. Be3 {[%emt 0:00:41]} Nc6 {[%emt 0:00:11]} 11. Nde2 {[%emt 0:00:39]} b5 {[%emt 0:01:41]} 12. Nd5 {[%emt 0:00:35]} Nxd5 {[%emt 0:02:34]} 13. exd5 {[%emt 0:00:03]} Na5 {[%emt 0:00:10]} 14. Bd4 {[%emt 0:00:41]} Rc8 {[%emt 0:00:35]} 15. Re1 {[%emt 0:01:01]} Bf5 {[%emt 0:02:28]} 16. Bxg7 {[%emt 0:00:36]} Kxg7 {[%emt 0:00:03]} 17. Nd4 {[%emt 0:00:08]} Bd7 {[%emt 0:01:42]} 18. b3 {[%emt 0:02:35]} Re8 {[%emt 0:01:40]} 19. Qd2 {[%emt 0:00:30]} e5 {[%emt 0:00:46]} 20. dxe6 {[%emt 0:00:02]} fxe6 {[%emt 0:00:02]} 21. Rad1 {[%emt 0:00:06]} Kg8 {[%emt 0:01:17]} 22. Re3 {[%emt 0:01:58]} d5 {[%emt 0:00:44]} 23. Rde1 {[%emt 0:00:24]} Nc6 {[%emt 0:00:19]} 24. Nxe6 {[%emt 0:00:03]} Qf6 {[%emt 0:00:01]} 25. Qxd5 {[%emt 0:00:06]} Kh8 {[%emt 0:00:03]} 26. Qxd7 {[%emt 0:00:04]} 1-0

[Event "European Online Club-ch-H 2021"]
[Site "Online"]
[Date "2021.03.27"]
[Round "5.11"]
[White "Pajeken, Jakob Leon"]
[Black "Baklan, Vladimir"]
[Result "1/2-1/2"]
[ECO "E62"]
[WhiteElo "2323"]
[BlackElo "2587"]
[Annotator "ChessBase"]
[PlyCount "109"]
[EventDate "2021.03.27"]
[EventType "team-tourn"]
[EventCountry "NET"]
[SourceTitle "playchess.com"]
[Source "ChessBase"]
[SourceQuality "1"]
[TimeControl "900+5"]

1. d4 {[%emt 0:00:00]} Nf6 {[%emt 0:00:03]} 2. Nf3 {[%emt 0:00:02]} g6 {[%emt 0:00:02]} 3. g3 {[%emt 0:00:02]} Bg7 {[%emt 0:00:01]} 4. Bg2 {[%emt 0:00:01]} O-O {[%emt 0:00:02]} 5. O-O {[%emt 0:00:01]} d6 {[%emt 0:00:01]} 6. c4 {[%emt 0:00:02]} c6 {[%emt 0:00:03]} 7. Nc3 {[%emt 0:00:02]} Bf5 {[%emt 0:00:02]} 8. Qe1 {[%emt 0:00:02]} d5 {[%emt 0:00:21]} 9. b3 {[%emt 0:00:03]} Ne4 {[%emt 0:00:16]} 10. Be3 {[%emt 0:00:06]} Nxc3 {[%emt 0:00:05]} 11. Qxc3 {[%emt 0:00:03]} Be4 {[%emt 0:00:02]} 12. Rfd1 {[%emt 0:00:19]} e6 {[%emt 0:00:50]} 13. Qb4 {[%emt 0:01:32]} Qb6 {[%emt 0:00:10]} 14. Qd2 {[%emt 0:01:34]} Qd8 {[%emt 0:01:21]} 15. Qb4 {[%emt 0:00:21]} Qb6 {[%emt 0:00:10]} 16. Qd2 {[%emt 0:00:02]} Qd8 {[%emt 0:00:38]} 17. h4 {[%emt 0:01:00]} Nd7 {[%emt 0:00:09]} 18. Rac1 {[%emt 0:00:16]} a5 {[%emt 0:00:15]} 19. cxd5 {[%emt 0:00:29]} exd5 {[%emt 0:00:10]} 20. Bg5 {[%emt 0:00:26]} Nf6 {[%emt 0:01:43]} 21. Qf4 {[%emt 0:00:15]} Nh5 {[%emt 0:00:05]} 22. Qe3 {[%emt 0:00:38]} Qc7 {[%emt 0:00:29]} 23. g4 {[%emt 0:01:30]} Nf6 {[%emt 0:00:06]} 24. Ne5 {[%emt 0:00:30]} Bxg2 {[%emt 0:00:25]} 25. Kxg2 {[%emt 0:00:04]} Rae8 {[%emt 0:01:27]} 26. Qf3 {[%emt 0:00:11]} Ne4 {[%emt 0:00:06]} 27. Bf4 {[%emt 0:00:06]} Qd8 {[%emt 0:00:14]} 28. Rh1 {[%emt 0:01:17]} f6 {[%emt 0:00:40]} 29. Nd3 {[%emt 0:00:05]} f5 {[%emt 0:00:02]} 30. Be5 {[%emt 0:00:18]} fxg4 {[%emt 0:02:04]} 31. Qxg4 {[%emt 0:00:04]} Nf6 {[%emt 0:00:01]} 32. Qg5 {[%emt 0:00:10]} Qc8 {[%emt 0:00:21]} 33. f3 {[%emt 0:00:14]} Nh5 {[%emt 0:00:05]} 34. Bxg7 {[%emt 0:00:27]} Kxg7 {[%emt 0:00:30]} 35. Ne5 {[%emt 0:00:05]} Nf4+ {[%emt 0:01:09]} 36. Kf1 {[%emt 0:00:33]} Ne6 {[%emt 0:00:08]} 37. Qd2 {[%emt 0:00:17]} Qd8 {[%emt 0:00:30]} 38. Kf2 {[%emt 0:00:59]} Nf4 {[%emt 0:00:54]} 39. e3 {[%emt 0:00:15]} Nh5 {[%emt 0:00:03]} 40. Rcg1 {[%emt 0:00:08]} Qf6 {[%emt 0:00:17]} 41. Qe2 {[%emt 0:00:13]} Re7 {[%emt 0:00:21]} 42. Rg5 {[%emt 0:00:08]} c5 {[%emt 0:00:09]} 43. Rhg1 {[%emt 0:00:13]} cxd4 {[%emt 0:00:09]} 44. Rxh5 {[%emt 0:00:58]} Rxe5 {[%emt 0:00:06]} 45. Rxe5 {[%emt 0:00:07]} Qxe5 {[%emt 0:00:04]} 46. exd4 {[%emt 0:00:18]} Qxd4+ {[%emt 0:00:13]} 47. Kg2 {[%emt 0:00:04]} Qf6 {[%emt 0:00:19]} 48. Rd1 {[%emt 0:00:17]} Rd8 {[%emt 0:00:07]} 49. Qb5 {[%emt 0:00:12]} Qxh4 {[%emt 0:00:31]} 50. Qxb7+ {[%emt 0:00:09]} Kg8 {[%emt 0:00:04]} 51. Rxd5 {[%emt 0:00:05]} Re8 {[%emt 0:00:06]} 52. Re5 {[%emt 0:00:08]} Rd8 {[%emt 0:00:21]} 53. Rd5 {[%emt 0:00:07]} Re8 {[%emt 0:00:06]} 54. Re5 {[%emt 0:00:13]} Rd8 {[%emt 0:00:10]} 55. Rd5 {[%emt 0:00:04]} 1/2-1/2